bitfinex/quotes_BTCUSD_20240607
["timestamp","ask_amount","ask_price","bid_price","bid_amount"]
[1717739098294,0.00086,71350.0,71349.0,2.82274999]
[1717739099154,0.00086,71350.0,71349.0,3.05474999]
[1717739099363,0.00086,71350.0,71349.0,3.13969569]
[1717739101079,0.00086,71350.0,71349.0,3.38179569]
[1717739101534,0.00086,71350.0,71349.0,3.55524587]
[1717739101760,0.00086,71350.0,71349.0,3.41403226]
[1717739102675,0.00086,71350.0,71349.0,2.64616123]
[1717739102874,0.00086,71350.0,71349.0,3.32908656]
[1717739103080,0.00086,71350.0,71349.0,3.41403226]
[1717739104114,0.00086,71350.0,71349.0,3.40003226]
[1717739104525,0.00086,71350.0,71349.0,3.41403226]
[1717739105135,0.00086,71350.0,71349.0,3.18203226]
[1717739105340,0.00086,71350.0,71349.0,3.74349026]
[1717739105567,0.00086,71350.0,71349.0,3.72949026]
[1717739105779,0.00086,71350.0,71349.0,6.79911726]
[1717739105992,0.00086,71350.0,71349.0,7.19700334]
[1717739106621,0.00086,71350.0,71349.0,7.12900334]
[1717739106855,0.00086,71350.0,71349.0,6.49700334]
[1717739107276,0.00086,71350.0,71349.0,6.48300334]
[1717739107484,0.00086,71350.0,71349.0,6.49700334]
[1717739107898,0.00086,71350.0,71349.0,6.59700334]
[1717739108334,0.00086,71350.0,71349.0,7.36896785]
[1717739108771,0.00086,71350.0,71349.0,7.38296785]
[1717739111239,0.00086,71350.0,71349.0,7.34789691]
[1717739111881,0.00086,71350.0,71349.0,7.34810802]
[1717739114676,0.00086,71350.0,71349.0,7.17288399]
[1717739114889,0.00086,71350.0,71349.0,7.35348354]
[1717739116279,0.00086,71350.0,71349.0,7.38855448]
[1717739116483,0.00086,71350.0,71349.0,7.35348354]
[1717739118681,0.00086,71350.0,71349.0,7.25631791]
[1717739118879,0.00086,71350.0,71349.0,7.32520131]
[1717739119083,0.00086,71350.0,71349.0,7.1843534]
[1717739119496,0.00086,71350.0,71349.0,6.9523534]
[1717739120534,0.00086,71350.0,71349.0,7.1843534]
[1717739121167,0.00086,71350.0,71349.0,7.2843534]
[1717739121378,0.00086,71350.0,71349.0,7.42520131]
[1717739121590,0.00086,71350.0,71349.0,7.2843534]
[1717739122203,0.00086,71350.0,71349.0,7.42520189]
[1717739123820,0.00086,71350.0,71349.0,7.32520189]
[1717739124035,0.00086,71350.0,71349.0,7.1843534]
[1717739124268,0.00086,71350.0,71349.0,7.32520189]
[1717739127338,0.00086,71350.0,71349.0,6.0246184]
[1717739129097,0.00086,71350.0,71349.0,5.77343485]
[1717739129307,0.00086,71350.0,71349.0,5.84369108]
[1717739130613,0.00086,71350.0,71349.0,5.8436738]
[1717739131233,0.00086,71350.0,71349.0,5.6509758]
[1717739131472,0.16216,71350.0,71349.0,3.4092148]
[1717739131690,0.23966,71350.0,71349.0,3.4092148]
[1717739131906,0.23966,71350.0,71349.0,3.18655275]
[1717739132623,0.23966,71350.0,71349.0,3.19555275]
[1717739132891,0.23966,71350.0,71349.0,3.06355275]
[1717739133145,0.23966,71350.0,71349.0,3.28155275]
[1717739133359,0.23966,71350.0,71349.0,3.29555275]
[1717739133575,0.23966,71350.0,71349.0,2.88095156]
[1717739133789,0.23966,71350.0,71349.0,3.03072213]
[1717739133998,0.23966,71350.0,71349.0,3.27672213]
[1717739134424,0.23966,71350.0,71349.0,3.03072213]
[1717739134631,0.23966,71350.0,71349.0,3.26272213]
[1717739134807,0.23966,71350.0,71349.0,3.27672213]
[1717739135220,0.23966,71350.0,71349.0,3.26272213]
[1717739135432,0.23966,71350.0,71349.0,3.24872213]
[1717739136259,0.23966,71350.0,71349.0,3.26272213]
[1717739136474,0.00086,71350.0,71349.0,3.27672213]
[1717739136881,0.00086,71350.0,71349.0,3.26272213]
[1717739137298,0.00086,71350.0,71349.0,3.27672213]
[1717739137712,0.00086,71350.0,71349.0,3.26272213]
[1717739137917,0.00086,71350.0,71349.0,3.2733582]
[1717739138141,0.00086,71350.0,71349.0,3.5536702]
[1717739138380,0.00086,71350.0,71349.0,3.70276177]
[1717739138592,0.00086,71350.0,71349.0,8.82810014]
[1717739138815,0.00086,71350.0,71349.0,9.38210627]
[1717739139026,0.00086,71350.0,71349.0,9.36810627]
[1717739139235,0.00086,71350.0,71349.0,9.38210627]
[1717739139437,0.00086,71350.0,71349.0,9.39610627]
[1717739139658,0.00086,71350.0,71349.0,9.39615567]
[1717739139852,0.00086,71350.0,71349.0,9.58131685]
[1717739140542,0.00086,71350.0,71349.0,9.56731685]
[1717739141141,0.00086,71350.0,71349.0,9.58131685]
[1717739143126,0.00086,71350.0,71349.0,9.78131685]
[1717739143356,0.00086,71350.0,71349.0,9.93131685]
[1717739143787,0.00086,71350.0,71349.0,9.23131685]
[1717739143995,0.00086,71350.0,71349.0,9.21731685]
[1717739144409,0.00086,71350.0,71349.0,9.23131685]
[1717739144613,0.00086,71350.0,71349.0,9.21731685]
[1717739144847,0.00086,71350.0,71349.0,9.91731685]
[1717739145069,0.00086,71350.0,71349.0,9.90019608]
[1717739145278,0.00086,71350.0,71349.0,9.88619608]
[1717739145913,0.00086,71350.0,71349.0,9.90019608]
[1717739146341,0.00086,71350.0,71349.0,9.7150349]
[1717739146549,0.00086,71350.0,71349.0,9.91086653]
[1717739146754,0.00086,71350.0,71349.0,10.33867853]
[1717739146966,0.00086,71350.0,71349.0,10.27067853]
[1717739147173,0.00086,71350.0,71349.0,10.32467853]
[1717739147856,0.00086,71350.0,71349.0,10.42973387]
[1717739148049,0.00086,71350.0,71349.0,10.44373387]
[1717739148271,0.00086,71350.0,71349.0,10.45773387]
[1717739148755,0.00086,71350.0,71349.0,10.4490305]
[1717739150187,0.00086,71350.0,71349.0,10.4350305]
[1717739150395,0.00086,71350.0,71349.0,10.43407818]
[1717739150601,0.00086,71350.0,71349.0,10.44807818]
[1717739151484,0.00086,71350.0,71349.0,10.6737054]
[1717739152302,0.00086,71350.0,71349.0,10.67280834]
[1717739154253,0.00086,71350.0,71349.0,10.44718112]
[1717739154570,0.00086,71350.0,71349.0,10.53770954]
[1717739160881,0.00086,71350.0,71349.0,10.30570954]
[1717739161081,0.00086,71350.0,71349.0,10.29957305]
[1717739161313,0.00086,71350.0,71349.0,10.59650211]
[1717739162091,0.00086,71350.0,71349.0,10.44900211]
[1717739168064,0.00086,71350.0,71349.0,10.6303885]
[1717739170586,0.00086,71350.0,71349.0,10.48872676]
[1717739170772,0.00086,71350.0,71349.0,10.64261587]
[1717739174701,0.00086,71350.0,71349.0,10.62555587]
[1717739174909,0.00086,71350.0,71349.0,10.07801687]
[1717739175107,0.00086,71350.0,71349.0,10.06401687]
[1717739175337,0.00086,71350.0,71349.0,10.05001687]
[1717739175539,0.00086,71350.0,71349.0,10.06401687]
[1717739175994,0.00086,71350.0,71349.0,10.03845525]
[1717739176131,0.00086,71350.0,71349.0,10.07442591]
[1717739176332,0.00086,71350.0,71349.0,10.06042591]
[1717739176745,0.00086,71350.0,71349.0,9.95986334]
[1717739177353,0.00086,71350.0,71349.0,10.10726334]
[1717739178341,0.00086,71350.0,71349.0,10.09326334]
[1717739178560,0.00086,71350.0,71349.0,10.07926334]
[1717739178771,0.00086,71350.0,71349.0,10.09326334]
[1717739179412,0.00086,71350.0,71349.0,10.10726334]
[1717739182824,0.00086,71350.0,71349.0,10.07922188]
[1717739183026,0.00086,71350.0,71349.0,9.74722188]
[1717739183237,0.00086,71350.0,71349.0,10.07922188]
[1717739183646,0.00086,71350.0,71349.0,9.87470088]
[1717739183796,0.00086,71350.0,71349.0,9.81396688]
[1717739184397,0.00086,71350.0,71349.0,9.53365488]
[1717739189852,0.00086,71350.0,71349.0,9.18558639]
[1717739190864,0.00086,71350.0,71349.0,9.51758639]
[1717739191034,0.00086,71350.0,71349.0,9.18558639]
[1717739191240,0.00086,71350.0,71349.0,9.51758639]
[1717739191442,0.00086,71350.0,71349.0,9.18548104]
[1717739191660,0.00086,71350.0,71349.0,9.51748104]
[1717739192291,0.00862,71361.0,71360.0,1.612672]
[1717739192510,0.22166808,71363.0,71362.0,0.56213]
[1717739192710,0.070195,71400.0,71363.0,1.132642]
[1717739192968,0.070195,71400.0,71367.0,1.252361]
[1717739193177,0.00468983,71369.0,71368.0,1.032355]
[1717739193410,0.00468983,71369.0,71368.0,2.13579168]
[1717739193662,0.00468983,71369.0,71368.0,7.430063]
[1717739193874,0.00468983,71369.0,71368.0,7.662063]
[1717739194076,0.00468983,71369.0,71368.0,8.17523871]
[1717739194461,0.00468983,71369.0,71368.0,8.31857072]
[1717739195090,0.00468983,71369.0,71368.0,8.24256771]
[1717739195620,0.08154983,71376.0,71375.0,0.571434]
[1717739195820,0.24144983,71376.0,71375.0,2.18357662]
[1717739196228,0.24144983,71376.0,71375.0,5.52096362]
[1717739196459,0.24144983,71376.0,71375.0,2.21918589]
[1717739196796,0.24144983,71376.0,71375.0,7.48432296]
[1717739197029,0.24144983,71376.0,71375.0,7.58667201]
[1717739197629,0.24144983,71376.0,71375.0,7.76850364]
[1717739198034,0.24144983,71376.0,71375.0,7.75458864]
[1717739199649,0.24144983,71376.0,71375.0,7.5562823]
[1717739199850,0.24144983,71376.0,71375.0,7.39951764]
[1717739202618,0.22476183,71376.0,71375.0,7.39951764]
[1717739203409,0.22476183,71376.0,71375.0,7.21768601]
[1717739203685,0.22476183,71376.0,71375.0,6.58429201]
[1717739203889,0.22476183,71376.0,71375.0,6.58768048]
[1717739204098,0.22476183,71376.0,71375.0,6.56618748]
[1717739205149,0.22476183,71376.0,71375.0,6.49312648]
[1717739205609,0.22476183,71376.0,71375.0,6.50972647]
[1717739205824,0.18628565,71376.0,71375.0,6.50972647]
[1717739206011,0.18628565,71376.0,71375.0,6.63537496]
[1717739206689,0.18628565,71376.0,71375.0,6.71140067]
[1717739207123,0.18628565,71376.0,71375.0,6.47940067]
[1717739207331,0.18628565,71376.0,71375.0,6.71140067]
[1717739208419,0.17028565,71376.0,71375.0,6.71140067]
[1717739209911,0.15428565,71376.0,71375.0,6.71140067]
[1717739210126,0.15428565,71376.0,71375.0,6.7444377]
[1717739210763,0.15428565,71376.0,71375.0,6.47646704]
[1717739210961,0.15428565,71376.0,71375.0,6.70846704]
[1717739211172,0.15428565,71376.0,71375.0,6.64046704]
[1717739211388,0.15428565,71376.0,71375.0,6.70846704]
[1717739211833,0.15428565,71376.0,71375.0,6.67543001]
[1717739212686,0.15428565,71376.0,71375.0,6.67532752]
[1717739212887,0.19378565,71376.0,71375.0,6.67532752]
[1717739213022,0.19378565,71376.0,71375.0,6.63527247]
[1717739213268,0.17778565,71376.0,71375.0,6.6446281]
[1717739213673,0.17778565,71376.0,71375.0,6.74111722]
[1717739214587,0.17778565,71376.0,71375.0,6.58303163]
[1717739214789,0.17778565,71376.0,71375.0,6.74110813]
[1717739215193,0.17778565,71376.0,71375.0,6.60002445]
[1717739215523,0.17778565,71376.0,71375.0,5.70222245]
[1717739215851,0.17778565,71376.0,71375.0,5.37628156]
[1717739216074,0.17778565,71376.0,71375.0,5.18912978]
[1717739216283,0.17778565,71376.0,71375.0,5.15152578]
[1717739217755,0.17778565,71376.0,71375.0,4.41196571]
[1717739217965,0.17778565,71376.0,71375.0,5.15152578]
[1717739219069,0.17778565,71376.0,71375.0,5.15153846]
[1717739219273,0.17778565,71376.0,71375.0,5.29274307]
[1717739219484,0.17778565,71376.0,71375.0,5.10372907]
[1717739219692,0.17778565,71376.0,71375.0,5.03572907]
[1717739220133,0.17778565,71376.0,71375.0,4.89278407]
[1717739220799,0.17778565,71376.0,71375.0,4.82478407]
[1717739221007,0.17778565,71376.0,71375.0,3.75298907]
[1717739221222,0.17778565,71376.0,71375.0,2.77777949]
[1717739221430,0.17778565,71376.0,71375.0,2.76577949]
[1717739221636,0.17778565,71376.0,71375.0,2.94814154]
[1717739221814,0.17778565,71376.0,71375.0,2.97176349]
[1717739222256,0.17778565,71376.0,71375.0,2.94976349]
[1717739222487,0.17778565,71376.0,71375.0,2.82965849]
[1717739222722,0.17778565,71376.0,71375.0,1.96005254]
[1717739223184,0.17778565,71376.0,71375.0,1.74005254]
[1717739223440,0.17778565,71376.0,71375.0,1.76005254]
[1717739223657,0.17778565,71376.0,71375.0,1.86005254]
[1717739224081,0.17778565,71376.0,71375.0,1.84605254]
[1717739224489,0.17778565,71376.0,71375.0,1.94005254]
[1717739224728,0.00863,71383.0,71376.0,0.099329]
[1717739224914,0.00863,71383.0,71375.0,1.14878118]
[1717739224915,0.068,71376.0,71375.0,1.14878118]
[1717739225186,0.068,71376.0,71375.0,1.16310147]
[1717739225398,0.068,71376.0,71375.0,1.3384944]
[1717739225596,0.068,71376.0,71375.0,1.3244944]
[1717739225710,0.068,71376.0,71375.0,1.3384944]
[1717739226126,0.068,71376.0,71375.0,1.31989439]
[1717739226377,0.068,71376.0,71375.0,1.33389439]
[1717739226548,0.068,71376.0,71375.0,1.47831332]
[1717739226753,0.00863,71383.0,71375.0,1.46431332]
[1717739226965,0.00863,71383.0,71377.0,0.15586761]
[1717739227180,0.07668,71378.0,71377.0,0.46414602]
[1717739227416,0.07668,71378.0,71377.0,0.5060401]
[1717739228240,0.07668,71378.0,71377.0,0.40144009]
[1717739228681,0.07668,71378.0,71377.0,0.41544009]
[1717739229094,0.07668,71378.0,71377.0,0.42944009]
[1717739230236,0.07668,71378.0,71377.0,0.51298969]
[1717739232385,0.07668,71378.0,71377.0,0.42944009]
[1717739232548,0.07651138,71378.0,71377.0,0.42944009]
[1717739234434,0.07651138,71378.0,71377.0,0.49207314]
[1717739234648,0.07651138,71378.0,71377.0,0.42944009]
[1717739234854,0.07651138,71378.0,71377.0,0.49207314]
[1717739236352,0.07651138,71378.0,71377.0,0.47661645]
[1717739236551,0.00851138,71378.0,71377.0,0.47661645]
[1717739236835,0.07651138,71378.0,71377.0,0.3139834]
[1717739237770,0.07651138,71378.0,71377.0,0.31396946]
[1717739238128,0.07651138,71378.0,71377.0,0.41396946]
[1717739241154,0.07651138,71378.0,71377.0,0.26955053]
[1717739241341,0.07651138,71378.0,71377.0,0.26964834]
[1717739242697,0.00851138,71378.0,71377.0,0.26964834]
[1717739242910,0.07651138,71378.0,71377.0,0.26964834]
[1717739244063,0.07651138,71378.0,71377.0,0.16964834]
[1717739245159,0.22391138,71378.0,71377.0,0.16964834]
[1717739245388,0.15591138,71378.0,71377.0,0.14164834]
[1717739245589,0.22391138,71378.0,71377.0,0.14164834]
[1717739245806,0.42458238,71378.0,71377.0,0.15564834]
[1717739246009,0.24758238,71378.0,71377.0,0.14164834]
[1717739246278,0.24758238,71378.0,71377.0,0.07222824]
[1717739246564,0.24758238,71378.0,71377.0,0.08622824]
[1717739247035,0.24758238,71378.0,71377.0,0.09422824]
[1717739247246,0.44758238,71378.0,71377.0,0.008]
[1717739247484,0.58768138,71378.0,71377.0,0.008]
[1717739247688,0.58768138,71378.0,71377.0,0.016]
[1717739248333,0.58768138,71378.0,71377.0,0.008]
[1717739248760,0.58768138,71378.0,71377.0,0.015]
[1717739252537,0.73210031,71378.0,71377.0,0.015]
[1717739253601,0.000671,71369.0,71368.0,0.07222824]
[1717739253815,0.223079,71369.0,71368.0,0.14177744]
[1717739254051,0.246079,71369.0,71368.0,0.14177744]
[1717739255014,0.246079,71369.0,71368.0,0.15577744]
[1717739255240,0.239071,71369.0,71368.0,0.15577744]
[1717739255700,0.1474,71369.0,71368.0,0.16977744]
[1717739255888,0.2154,71369.0,71368.0,0.16977744]
[1717739256561,0.2154,71369.0,71368.0,0.14177744]
[1717739256769,0.2154,71369.0,71368.0,0.15577744]
[1717739257614,0.2154,71369.0,71368.0,0.14177744]
[1717739257835,0.2154,71369.0,71368.0,0.15577744]
[1717739258069,0.2164,71369.0,71368.0,0.16977744]
[1717739258482,0.2154,71369.0,71368.0,0.15577744]
[1717739258747,0.001,71369.0,71368.0,0.41319637]
[1717739258964,0.001,71369.0,71368.0,0.46297617]
[1717739259175,0.001,71369.0,71368.0,0.53250614]
[1717739259379,0.001,71369.0,71368.0,0.78310614]
[1717739259596,0.001,71369.0,71368.0,0.79299913]
[1717739260026,0.001,71369.0,71368.0,1.08836879]
[1717739260237,0.001,71369.0,71368.0,0.97164147]
[1717739260678,0.001,71369.0,71368.0,1.00740582]
[1717739260888,0.001,71369.0,71368.0,1.34260582]
[1717739261126,0.00851138,71378.0,71377.0,0.231329]
[1717739261348,0.00851138,71378.0,71377.0,1.0881241]
[1717739261797,0.00851138,71378.0,71377.0,1.0761241]
[1717739262223,0.00851138,71378.0,71377.0,1.2881241]
[1717739262456,0.00851138,71378.0,71377.0,1.37140723]
[1717739262689,0.00851138,71378.0,71377.0,1.2881241]
[1717739262896,0.00851138,71378.0,71377.0,1.4062286]
[1717739263345,0.00851138,71378.0,71377.0,1.1021241]
[1717739263565,0.00851138,71378.0,71377.0,1.3021241]
[1717739264000,0.00851138,71378.0,71377.0,1.4176241]
[1717739264430,0.00851138,71378.0,71377.0,1.4036241]
[1717739264640,0.00851138,71378.0,71377.0,2.14316344]
[1717739265289,0.00851138,71378.0,71377.0,2.12916344]
[1717739265947,0.00851138,71378.0,71377.0,2.15716344]
[1717739266153,0.00851138,71378.0,71377.0,2.28326444]
[1717739266372,0.00851138,71378.0,71377.0,2.25494415]
[1717739266573,0.00851138,71378.0,71377.0,2.26894415]
[1717739266745,0.00834276,71378.0,71377.0,2.26894415]
[1717739267158,0.00834276,71378.0,71377.0,2.26899437]
[1717739268607,0.00834276,71378.0,71377.0,2.26899624]
[1717739269030,0.00834276,71378.0,71377.0,2.06899624]
[1717739269475,0.00834276,71378.0,71377.0,2.08299624]
[1717739269660,0.00834276,71378.0,71377.0,1.90349624]
[1717739269903,0.00834276,71378.0,71377.0,1.89949624]
[1717739270081,0.00834276,71378.0,71377.0,2.11349624]
[1717739270294,0.00834276,71378.0,71377.0,1.90149624]
[1717739270525,0.00834276,71378.0,71377.0,1.90349624]
[1717739270703,0.00834276,71378.0,71377.0,1.91349624]
[1717739272179,0.00834276,71378.0,71377.0,1.89160325]
[1717739272383,0.00834276,71378.0,71377.0,1.89854947]
[1717739272616,0.00834276,71378.0,71377.0,1.90854947]
[1717739273679,0.00834276,71378.0,71377.0,1.91717947]
[1717739274355,0.00834276,71378.0,71377.0,2.02124054]
[1717739275240,0.00834276,71378.0,71377.0,1.2817012]
[1717739275446,0.00834276,71378.0,71377.0,2.02124054]
[1717739277356,0.00834276,71378.0,71377.0,1.91717947]
[1717739278596,0.00834276,71378.0,71377.0,1.90517947]
[1717739278799,0.00834276,71378.0,71377.0,1.90717947]
[1717739279218,0.00834276,71378.0,71377.0,1.90517947]
[1717739279461,0.00834276,71378.0,71377.0,1.91717947]
[1717739279863,0.00834276,71378.0,71377.0,1.90317947]
[1717739280066,0.00834276,71378.0,71377.0,1.87917947]
[1717739280273,0.00834276,71378.0,71377.0,2.06067947]
[1717739280492,0.00834276,71378.0,71377.0,2.07467947]
[1717739281311,0.00834276,71378.0,71377.0,2.0748854]
[1717739281901,0.00834276,71378.0,71377.0,2.0868854]
[1717739282250,0.00834276,71378.0,71377.0,2.17008084]
[1717739282647,0.00834276,71378.0,71377.0,2.08696308]
[1717739282866,0.00834276,71378.0,71377.0,2.43354308]
[1717739283102,0.00834276,71378.0,71377.0,2.53760415]
[1717739283311,0.00834276,71378.0,71377.0,2.4410049]
[1717739283949,0.00834276,71378.0,71377.0,2.4563554]
[1717739285251,0.00834276,71378.0,71377.0,1.71681606]
[1717739285447,0.00834276,71378.0,71377.0,2.49219744]
[1717739285746,0.00834276,71378.0,71377.0,2.4563554]
[1717739285955,0.00834276,71378.0,71377.0,2.3546554]
[1717739286399,0.00834276,71378.0,71377.0,2.33715104]
[1717739286596,0.00834276,71378.0,71377.0,2.30915104]
[1717739286951,0.00834276,71378.0,71377.0,2.33715104]
[1717739287345,0.00834276,71378.0,71377.0,2.30915104]
[1717739287546,0.00834276,71378.0,71377.0,2.32315104]
[1717739287751,0.00834276,71378.0,71377.0,2.33715104]
[1717739288850,0.00863,71383.0,71382.0,0.421329]
[1717739288992,0.00863,71383.0,71382.0,1.33557592]
[1717739289424,0.00863,71383.0,71382.0,2.68229892]
[1717739289823,0.00863,71383.0,71382.0,3.49843192]
[1717739290656,0.00863,71383.0,71382.0,3.51243192]
[1717739291116,0.00863,71383.0,71382.0,3.51643192]
[1717739292329,0.00863,71383.0,71382.0,3.50243192]
[1717739292756,0.00863,71383.0,71382.0,3.51643192]
[1717739292953,0.00016955,71398.0,71382.0,3.51643192]
[1717739292954,0.00225999,71384.0,71383.0,0.561418]
[1717739293162,0.00225999,71384.0,71383.0,1.23693875]
[1717739293359,0.00225999,71384.0,71383.0,4.64452975]
[1717739293961,0.00225999,71384.0,71383.0,4.14356721]
[1717739294169,0.00225999,71384.0,71383.0,4.15756721]
[1717739294393,0.00225999,71384.0,71383.0,4.17156721]
[1717739294591,0.00225999,71384.0,71383.0,4.06766334]
[1717739295017,0.00225999,71384.0,71383.0,2.94639234]
[1717739295216,0.00225999,71384.0,71383.0,2.93020234]
[1717739299796,0.00016955,71398.0,71388.0,0.601329]
[1717739300017,0.00016955,71398.0,71388.0,1.58399311]
[1717739300219,0.00016955,71398.0,71388.0,3.01265587]
[1717739300421,0.00016955,71398.0,71388.0,2.69265587]
[1717739301111,0.00016955,71398.0,71388.0,2.70665587]
[1717739301333,0.00016955,71398.0,71388.0,2.72065587]
[1717739301735,0.00016955,71398.0,71388.0,2.66846897]
[1717739301931,0.00016955,71398.0,71397.0,0.401329]
[1717739302142,0.00016955,71398.0,71397.0,1.03908103]
[1717739302353,0.00016955,71398.0,71397.0,1.07870868]
[1717739302519,0.00016955,71398.0,71397.0,0.97870868]
[1717739302724,0.00016955,71398.0,71397.0,1.08431168]
[1717739303099,0.00016955,71398.0,71397.0,1.11231168]
[1717739303328,0.00016955,71398.0,71397.0,0.90824255]
[1717739303549,0.00016955,71398.0,71397.0,0.89424255]
[1717739304210,0.00016955,71398.0,71397.0,0.90824255]
[1717739305285,0.00016955,71398.0,71397.0,1.11024255]
[1717739305484,0.00016955,71398.0,71397.0,0.91024255]
[1717739305689,0.00016955,71398.0,71397.0,0.90824255]
[1717739306730,0.00016955,71398.0,71397.0,0.84044255]
[1717739306983,0.00016955,71398.0,71397.0,0.90824255]
[1717739312597,0.00016955,71398.0,71397.0,0.84044255]
[1717739312803,0.00016955,71398.0,71397.0,0.90824255]
[1717739313386,0.00016955,71398.0,71397.0,1.36661045]
[1717739313583,0.00016955,71398.0,71397.0,1.87937805]
[1717739313743,0.00016955,71398.0,71397.0,1.73909795]
[1717739314061,0.00016955,71398.0,71397.0,1.84909795]
[1717739315224,0.00016955,71398.0,71397.0,2.62328242]
[1717739315444,0.00016955,71398.0,71397.0,2.60928242]
[1717739316079,0.00102955,71398.0,71397.0,2.6468208]
[1717739316281,0.00102955,71398.0,71397.0,2.60928242]
[1717739316490,0.006,71409.0,71408.0,0.751369]
[1717739316705,0.006,71409.0,71408.0,1.46539463]
[1717739316900,0.006,71409.0,71408.0,1.34039623]
[1717739317927,0.006,71409.0,71408.0,1.35439623]
[1717739318336,0.006,71409.0,71408.0,2.34647198]
[1717739318565,0.006,71409.0,71408.0,3.12053719]
[1717739318749,0.006,71409.0,71408.0,3.15607011]
[1717739319164,0.006,71409.0,71408.0,3.14207011]
[1717739319663,0.00700207,71433.0,71408.0,3.14207011]
[1717739319664,0.00915653,71436.0,71427.0,0.01]
[1717739319869,0.00915653,71436.0,71428.0,0.14441893]
[1717739319870,0.00700142,71435.0,71428.0,0.14441893]
[1717739320073,0.00915653,71436.0,71428.0,0.14441893]
[1717739320281,0.00915653,71436.0,71429.0,0.1]
[1717739320282,0.01,71435.0,71429.0,0.1]
[1717739320483,0.00915653,71436.0,71429.0,0.1]
[1717739320692,0.00915653,71436.0,71429.0,0.0995]
[1717739321118,0.07695653,71436.0,71429.0,0.0995]
[1717739321729,0.07695653,71436.0,71429.0,0.1005]
[1717739322157,0.00915653,71436.0,71435.0,0.07222824]
[1717739322380,0.00915653,71436.0,71435.0,0.21664717]
[1717739322601,0.00915653,71436.0,71435.0,0.25489754]
[1717739322818,0.00915653,71436.0,71435.0,0.35489754]
[1717739323040,0.00915653,71436.0,71435.0,0.39243592]
[1717739323254,0.00915653,71436.0,71435.0,0.35489754]
[1717739323476,0.00915653,71436.0,71435.0,0.45422654]
[1717739324092,0.00915653,71436.0,71435.0,0.46722654]
[1717739326041,0.00915653,71436.0,71435.0,0.42897617]
[1717739326247,0.00915653,71436.0,71435.0,0.46722654]
[1717739326460,0.00915653,71436.0,71435.0,0.42897617]
[1717739328088,0.00915653,71436.0,71435.0,0.48499117]
[1717739331647,0.00915653,71436.0,71435.0,0.48449117]
[1717739333390,0.01915653,71436.0,71435.0,0.3516843]
[1717739333649,0.08695653,71436.0,71435.0,0.25741893]
[1717739334327,0.07695653,71436.0,71435.0,0.25741893]
[1717739339803,0.07695653,71436.0,71435.0,0.25691893]
[1717739340209,0.00915653,71436.0,71435.0,0.25691893]
[1717739340386,0.07695653,71436.0,71435.0,0.25691893]
[1717739342241,0.00915653,71436.0,71435.0,0.25691893]
[1717739343303,0.00915653,71436.0,71435.0,0.26691893]
[1717739343506,0.00915653,71436.0,71435.0,0.36624793]
[1717739343733,0.00915653,71436.0,71435.0,0.35624793]
[1717739344106,0.00915653,71436.0,71435.0,0.36624793]
[1717739344310,0.00915653,71436.0,71435.0,0.35624793]
[1717739344510,0.00915653,71436.0,71435.0,0.36624793]
[1717739345001,0.00915653,71436.0,71435.0,0.43654793]
[1717739346343,0.00915653,71436.0,71435.0,0.44654793]
[1717739346769,0.00915653,71436.0,71435.0,0.60134793]
[1717739347395,0.00915653,71436.0,71435.0,0.66914793]
[1717739347603,0.00915653,71436.0,71435.0,0.69102151]
[1717739347827,0.00915653,71436.0,71435.0,0.73258036]
[1717739348042,0.00915653,71436.0,71435.0,0.66478036]
[1717739348248,0.00915653,71436.0,71435.0,0.61716751]
[1717739348457,0.00915653,71436.0,71435.0,0.64941788]
[1717739348676,0.00915653,71436.0,71435.0,0.66241788]
[1717739348891,0.00915653,71436.0,71435.0,0.67641788]
[1717739349305,0.01001653,71436.0,71435.0,0.67641788]
[1717739349937,0.01001653,71436.0,71435.0,0.63816751]
[1717739350658,0.01001653,71436.0,71435.0,0.63666751]
[1717739352376,0.01001653,71436.0,71435.0,0.69899243]
[1717739352567,0.01001653,71436.0,71435.0,0.63666751]
[1717739353142,0.01001653,71436.0,71435.0,0.69899243]
[1717739355192,0.01001653,71436.0,71435.0,0.29223851]
[1717739355402,0.01001653,71436.0,71435.0,0.27036493]
[1717739355611,0.01005677,71436.0,71435.0,0.27036493]
[1717739356053,0.01005677,71436.0,71435.0,0.37969393]
[1717739356265,0.00988829,71436.0,71435.0,0.45899393]
[1717739356503,0.00988829,71436.0,71435.0,0.52244728]
[1717739356753,0.00988829,71436.0,71435.0,0.48086807]
[1717739356987,0.00988829,71436.0,71435.0,0.52245227]
[1717739357511,0.00988829,71436.0,71435.0,0.42981844]
[1717739357537,0.00988829,71436.0,71435.0,0.39156807]
[1717739357919,0.00988829,71436.0,71435.0,0.36969393]
[1717739359388,0.00988829,71436.0,71435.0,0.27036493]
[1717739362520,0.01988829,71436.0,71435.0,0.27036493]
[1717739362720,0.00988829,71436.0,71435.0,0.27036493]
[1717739365034,0.01988829,71436.0,71435.0,0.27036493]
[1717739365822,0.01988829,71436.0,71435.0,0.127946]
[1717739366295,0.07768829,71436.0,71435.0,0.127946]
[1717739366505,0.08768829,71436.0,71435.0,0.127946]
[1717739366926,0.07768829,71436.0,71435.0,0.127946]
[1717739367338,0.08768829,71436.0,71435.0,0.127946]
[1717739367755,0.07768829,71436.0,71435.0,0.127946]
[1717739368430,0.08768829,71436.0,71435.0,0.10017424]
[1717739369931,0.00988829,71436.0,71435.0,0.10017424]
[1717739370151,0.07768829,71436.0,71435.0,0.10017424]
[1717739370397,0.07768829,71436.0,71427.0,0.11311875]
[1717739370398,0.297972,71428.0,71427.0,0.11311875]
[1717739370625,0.000671,71433.0,71420.0,0.07222824]
[1717739370821,0.0678,71422.0,71421.0,0.14441893]
[1717739371035,0.0778,71422.0,71421.0,0.14441893]
[1717739371260,0.01,71421.0,71420.0,0.07222824]
[1717739371482,0.01,71419.0,71418.0,0.01432029]
[1717739371764,0.010671,71427.0,71418.0,0.15873922]
[1717739371959,0.00016929,71444.0,71418.0,0.15873922]
[1717739371960,0.01,71431.0,71426.0,0.07222824]
[1717739372170,0.0678,71427.0,71426.0,0.07222824]
[1717739372392,0.00700139,71430.0,71426.0,0.07222824]
[1717739372630,0.0678,71427.0,71426.0,0.07222824]
[1717739372846,0.00016929,71444.0,71427.0,0.099329]
[1717739372847,0.00988829,71436.0,71427.0,0.099329]
[1717739373066,0.00700092,71432.0,71428.0,0.14441893]
[1717739373279,0.00988829,71436.0,71429.0,0.1]
[1717739373280,0.00700078,71435.0,71429.0,0.1]
[1717739373499,0.00988829,71436.0,71434.0,0.07222824]
[1717739373712,0.00988829,71436.0,71435.0,0.14441893]
[1717739373929,0.00988829,71436.0,71435.0,0.24441893]
[1717739375052,0.00988829,71436.0,71435.0,0.58754793]
[1717739375273,0.01088829,71436.0,71435.0,0.58754793]